bitfinex/quotes_SOLUSD_20251231
["timestamp","ask_amount","ask_price","bid_price","bid_amount"]
[1767202726133,5.01406031,124.81,124.78,0.66191431]
[1767202726634,5.01406031,124.8,124.78,0.66191431]
[1767202727034,5.01406031,124.81,124.78,0.66191431]
[1767202729636,15.15870688,124.83,124.78,0.66191431]
[1767202729838,5.01406031,124.81,124.78,0.66191431]
[1767202730056,5.01406031,124.8,124.78,0.66191431]
[1767202730231,5.01406031,124.8,124.76,0.2]
[1767202730232,5.53276719,124.79,124.76,0.91356759]
[1767202730431,5.53276719,124.77,124.75,0.2]
[1767202730645,5.01406031,124.76,124.75,0.2]
[1767202731168,5.01406031,124.75,124.72,0.71356759]
[1767202732263,5.01406031,124.74,124.71,0.71356759]
[1767202732559,5.01406031,124.74,124.71,8.73215844]
[1767202732767,5.01406031,124.74,124.72,0.71356759]
[1767202734554,3.21611434,124.74,124.72,0.71356759]
[1767202735461,3.73482122,124.74,124.7,8.11894902]
[1767202735667,3.21611434,124.73,124.7,8.83251661]
[1767202735852,3.73482122,124.74,124.71,0.71356759]
[1767202736059,3.21611434,124.74,124.71,0.71356759]
[1767202736665,0.51870688,124.75,124.71,0.71356759]
[1767202736871,3.21611434,124.74,124.71,0.71356759]
[1767202737866,8.01374943,124.79,124.71,11.23433972]
[1767202738070,17.85611434,124.78,124.74,0.71356759]
[1767202738374,14.64,124.78,124.74,3.21611434]
[1767202738552,14.64,124.78,124.75,0.71356759]
[1767202738753,72.26571191,124.8,124.76,0.71356759]
[1767202739070,14.64,124.79,124.76,0.71356759]
[1767202739274,72.78441879,124.8,124.76,0.71356759]
[1767202739470,3.21611434,124.79,124.76,0.71356759]
[1767202740048,0.51870688,124.82,124.76,0.71356759]
[1767202740248,3.21611434,124.8,124.76,0.71356759]
[1767202740480,3.21611434,124.81,124.78,0.71356759]
[1767202740854,15.15870688,124.82,124.78,0.71356759]
[1767202741056,3.73482122,124.81,124.77,3.92968193]
[1767202741574,3.73482122,124.81,124.77,0.71356759]
[1767202743875,3.21611434,124.81,124.78,0.71356759]
[1767202744771,18.37482122,124.82,124.78,0.71356759]
[1767202744967,18.37482122,124.82,124.78,3.92968193]
[1767202745558,18.37482122,124.82,124.78,0.71356759]
[1767202749200,18.37482122,124.82,124.78,3.21611434]
[1767202749372,18.37482122,124.82,124.79,0.71356759]
[1767202750677,3.21611434,124.81,124.79,0.71356759]
[1767202751973,15.15870688,124.82,124.79,0.71356759]
[1767202752276,3.21611434,124.81,124.79,0.71356759]
[1767202754285,15.15870688,124.82,124.79,0.71356759]
[1767202754576,18.37482122,124.82,124.79,0.71356759]
[1767202756178,14.64,124.82,124.79,0.71356759]
[1767202756702,3.73482122,124.83,124.79,0.71356759]
[1767202756981,17.85611434,124.82,124.79,0.71356759]
[1767202758062,17.85611434,124.82,124.77,8.01466944]
[1767202758063,3.73482122,124.81,124.77,8.01466944]
[1767202758380,3.21611434,124.81,124.78,0.71356759]
[1767202761969,3.21611434,124.8,124.78,0.71356759]
[1767202762690,3.21611434,124.79,124.74,0.67000368]
[1767202762904,3.21611434,124.79,124.72,68.70220673]
[1767202762905,3.21611434,124.75,124.72,0.67000368]
[1767202763066,3.21611434,124.73,124.7,0.77000368]
[1767202763272,3.21611434,124.71,124.7,0.1]
[1767202763469,3.21611434,124.72,124.7,0.1]
[1767202763670,23.35013837,124.79,124.7,0.1]
[1767202763874,3.21611434,124.74,124.7,0.77000368]
[1767202764083,17.85611434,124.74,124.7,0.77000368]
[1767202764483,3.21611434,124.73,124.7,0.77000368]
[1767202765582,14.64,124.74,124.71,0.67000368]
[1767202765886,17.85611434,124.74,124.71,0.67000368]
[1767202766085,3.21611434,124.75,124.71,0.67000368]
[1767202766285,17.85611434,124.75,124.71,0.67000368]
[1767202766896,3.21611434,124.74,124.71,0.67000368]
[1767202767106,18.37482122,124.75,124.71,0.67000368]
[1767202767777,14.64,124.75,124.72,0.67000368]
[1767202768299,17.85611434,124.75,124.72,0.67000368]
[1767202768482,3.21611434,124.73,124.7,0.77000368]
[1767202768682,3.21611434,124.8,124.72,0.67000368]
[1767202768683,0.51870688,124.77,124.72,0.67000368]
[1767202768994,69.04959757,124.81,124.75,0.67000368]
[1767202768995,0.51870688,124.79,124.75,0.67000368]
[1767202769176,14.64,124.78,124.75,0.67000368]
[1767202769502,17.85611434,124.78,124.75,0.67000368]
[1767202769896,3.21611434,124.77,124.75,0.67000368]
[1767202770400,17.85611434,124.77,124.75,0.67000368]
[1767202770985,14.64,124.77,124.75,0.67000368]
[1767202771187,17.85611434,124.77,124.75,0.67000368]
[1767202772088,14.64,124.77,124.75,0.67000368]
[1767202773876,17.85611434,124.77,124.75,0.67000368]
[1767202775910,14.64,124.77,124.75,0.67000368]
[1767202776111,17.85611434,124.77,124.75,0.67000368]
[1767202776686,3.21611434,124.78,124.75,0.67000368]
[1767202776892,3.21611434,124.79,124.76,0.67000368]
[1767202777099,17.85611434,124.8,124.76,0.67000368]
[1767202777900,14.64,124.8,124.76,0.67000368]
[1767202778100,17.85611434,124.8,124.76,0.67000368]
[1767202780009,3.21611434,124.79,124.76,0.67000368]
[1767202781008,3.21611434,124.78,124.76,0.67000368]
[1767202781593,3.21611434,124.77,124.74,0.67000368]
[1767202782001,3.21611434,124.77,124.74,8.68667624]
[1767202783110,3.21611434,124.77,124.73,8.0173174]
[1767202783316,18.37482122,124.77,124.73,8.68732108]
[1767202783522,18.37482122,124.77,124.74,0.67000368]
[1767202784424,15.15870688,124.77,124.74,0.67000368]
[1767202784624,18.37482122,124.77,124.74,0.67000368]
[1767202787827,3.21611434,124.76,124.73,8.0173174]
[1767202788024,15.15870688,124.77,124.71,3.88611802]
[1767202788202,14.64,124.76,124.73,0.67000368]
[1767202788403,14.64,124.76,124.74,0.67000368]
[1767202788803,14.64,124.76,124.71,20.04586437]
[1767202789010,14.64,124.76,124.73,0.67000368]
[1767202789409,3.73482122,124.77,124.73,3.21611434]
[1767202789724,14.64,124.77,124.74,0.67000368]
[1767202792010,17.85611434,124.77,124.74,0.67000368]
[1767202793238,14.64,124.77,124.74,0.67000368]
[1767202793415,17.85611434,124.77,124.74,0.67000368]
[1767202793933,14.64,124.77,124.74,0.67000368]
[1767202794104,17.85611434,124.77,124.74,0.67000368]
[1767202794535,19.66241003,124.77,124.74,0.67000368]
[1767202800133,0.51870688,124.78,124.74,0.67000368]
[1767202800335,0.51870688,124.81,124.76,5.68555711]
[1767202800537,20.18111691,124.82,124.78,0.66314708]
[1767202801037,5.54111691,124.82,124.79,0.66314708]
[1767202801233,5.02241003,124.82,124.79,0.66314708]
[1767202806046,5.54111691,124.82,124.79,0.66314708]
[1767202806756,5.02241003,124.81,124.78,0.66314708]
[1767202808625,20.18111691,124.82,124.78,0.66314708]
[1767202809153,5.02241003,124.82,124.79,0.66314708]
[1767202809441,12.1918362,124.87,124.79,0.66314708]
[1767202809641,12.1918362,124.87,124.78,8.0139968]
[1767202809642,5.54111691,124.86,124.82,5.68555711]
[1767202809825,5.02241003,124.85,124.83,0.66314708]
[1767202810931,5.02241003,124.84,124.81,0.66314708]
[1767202811834,5.54111691,124.85,124.82,0.66314708]
[1767202812145,0.51870688,124.85,124.82,0.66314708]
[1767202812348,5.54111691,124.85,124.82,0.66314708]
[1767202813640,5.02241003,124.88,124.84,0.66314708]
[1767202813955,19.66241003,124.88,124.84,5.02241003]
[1767202814348,20.21111691,124.88,124.84,5.02241003]
[1767202814936,20.21111691,124.88,124.83,13.03308716]
[1767202815662,5.02241003,124.87,124.83,13.03308716]
[1767202815874,20.21111691,124.88,124.84,0.66314708]
[1767202817157,5.02241003,124.87,124.84,0.66314708]
[1767202817347,20.21111691,124.88,124.84,0.66314708]
[1767202818643,5.02241003,124.85,124.82,0.66314708]
[1767202819430,0.54870688,124.89,124.83,0.66586399]
[1767202819763,5.02241003,124.86,124.83,0.66586399]
[1767202821065,5.57111691,124.86,124.81,13.03444434]
[1767202821254,5.02241003,124.83,124.8,8.71575551]
[1767202821448,5.57111691,124.83,124.8,0.70320997]
[1767202821647,5.57111691,124.83,124.79,0.70320997]
[1767202821648,5.02241003,124.82,124.79,0.70320997]
[1767202821834,5.57111691,124.81,124.78,0.70320997]
[1767202822038,5.02241003,124.81,124.78,0.70320997]
[1767202822678,5.02241003,124.81,124.78,8.71729862]
[1767202822977,5.02241003,124.81,124.79,0.70320997]
[1767202824670,20.21111691,124.82,124.79,0.70320997]
[1767202829565,15.18870688,124.82,124.79,0.70320997]
[1767202829756,20.21111691,124.82,124.79,0.70320997]
[1767202831071,5.02241003,124.81,124.79,0.70320997]
[1767202831250,5.57111691,124.81,124.78,0.70320997]
[1767202832271,0.68021502,124.89,124.8,10.04482006]
[1767202832471,0.68021502,124.87,124.83,5.02241003]
[1767202832954,0.68021502,124.87,124.8,14.64]
[1767202832955,0.68021502,124.86,124.8,14.64]
[1767202833151,0.68021502,124.89,124.81,5.02241003]
[1767202833357,0.68021502,124.85,124.81,5.02241003]
[1767202833872,0.68021502,124.84,124.8,5.02241003]
[1767202834367,5.70262505,124.84,124.79,5.02241003]
[1767202834566,0.68021502,124.83,124.79,5.02241003]
[1767202840579,5.70262505,124.83,124.75,62.0]
[1767202840769,5.70262505,124.79,124.75,13.03836352]
[1767202841165,5.70262505,124.79,124.76,8.01538849]
[1767202841367,0.68021502,124.79,124.76,8.01538849]
[1767202842583,0.68021502,124.79,124.76,13.03779852]
[1767202845881,0.68021502,124.76,124.72,6.70220673]
[1767202846061,0.68021502,124.76,124.72,5.02241003]
[1767202846062,0.68021502,124.75,124.72,5.02241003]
[1767202846263,0.68021502,124.75,124.74,5.02241003]
[1767202846484,0.68021502,124.75,124.73,5.02241003]
[1767202846685,0.68021502,124.75,124.73,13.03939996]
[1767202847885,19.66241003,124.77,124.73,28.06028344]
[1767202848264,14.64,124.77,124.74,5.02241003]
[1767202849785,0.68176032,124.74,124.72,8.01764525]
[1767202850867,0.68176032,124.74,124.72,13.04005528]
[1767202851862,0.68176032,124.74,124.71,13.04101318]
[1767202853486,0.68176032,124.74,124.72,5.02241003]
[1767202854095,14.64,124.75,124.72,5.02241003]
[1767202854096,14.64,124.75,124.73,5.02241003]
[1767202854466,0.68176032,124.74,124.73,3.21498886]
[1767202855182,0.68176032,124.74,124.72,11.23285025]
[1767202855963,3.21498886,124.74,124.71,8.01843704]
[1767202856170,0.68176032,124.73,124.7,11.33402909]
[1767202857174,0.68176032,124.73,124.71,11.23352589]
[1767202859174,0.68176032,124.73,124.7,11.33398808]
[1767202859980,0.68176032,124.73,124.71,8.01854892]
[1767202862303,0.68176032,124.73,124.71,11.23353778]
[1767202862690,0.68176032,124.73,124.71,8.01854892]
[1767202863305,0.68176032,124.73,124.71,11.23353778]
[1767202863879,3.21498886,124.73,124.7,0.1]
[1767202864183,3.21498886,124.73,124.69,0.1]
[1767202864184,0.68176032,124.7,124.69,0.1]
[1767202865095,0.68176032,124.73,124.69,12.04068735]
[1767202865291,0.68176032,124.73,124.7,3.21498886]
[1767202866199,0.68176032,124.73,124.7,11.23417511]
[1767202866600,0.68176032,124.73,124.7,3.21498886]
[1767202867184,0.68176032,124.73,124.7,8.01915688]
[1767202867592,0.68176032,124.73,124.69,12.04076487]
[1767202867792,0.68176032,124.72,124.69,8.82577601]
[1767202868090,0.68176032,124.72,124.7,8.01916619]
[1767202869103,0.68176032,124.72,124.69,12.04076703]
[1767202869406,0.68176032,124.72,124.69,0.1]
[1767202869407,0.68176032,124.71,124.69,0.1]
[1767202869613,0.68176032,124.7,124.69,0.1]
[1767202869794,0.68176032,124.7,124.66,12.04240272]
[1767202869999,0.68176032,124.7,124.67,8.02110241]
[1767202870201,0.68176032,124.7,124.67,0.70620019]
[1767202870202,3.89674918,124.7,124.67,0.70620019]
[1767202870397,0.68176032,124.68,124.66,0.1]
[1767202870903,14.66,124.7,124.67,3.92118905]
[1767202871484,0.68176032,124.7,124.67,3.92118905]
[1767202872295,15.34176032,124.71,124.68,3.21498886]
[1767202872507,15.34176032,124.71,124.67,0.70620019]
[1767202872708,15.34176032,124.71,124.68,3.21498886]
[1767202872909,15.34176032,124.71,124.67,8.72693837]
[1767202873097,15.34176032,124.71,124.68,3.21498886]
[1767202873411,15.34176032,124.71,124.67,8.72693837]
[1767202873599,0.68176032,124.7,124.68,3.21498886]
[1767202875097,15.34176032,124.71,124.68,3.21498886]
[1767202879591,15.34176032,124.71,124.67,8.72693837]
[1767202879793,15.34176032,124.71,124.68,3.21498886]
[1767202880325,18.52855849,124.73,124.69,3.88539544]
[1767202880494,0.65356963,124.72,124.69,3.88539544]
[1767202881314,3.86855849,124.72,124.69,0.67040658]
[1767202881494,3.21498886,124.72,124.68,11.90577534]
[1767202881694,0.65356963,124.71,124.68,11.90577534]
[1767202882009,0.65356963,124.71,124.68,3.88539544]
[1767202882189,3.86855849,124.71,124.68,0.67040658]
[1767202883206,0.65356963,124.7,124.67,11.90646477]
[1767202884122,0.65356963,124.73,124.69,3.88539544]
[1767202884417,14.66,124.72,124.7,0.67040658]
[1767202884628,15.31356963,124.73,124.7,3.88539544]
[1767202884796,14.66,124.73,124.7,3.88539544]
[1767202885619,15.31356963,124.74,124.7,0.67040658]
[1767202885825,15.31356963,124.74,124.7,3.88539544]
[1767202886324,15.31356963,124.74,124.71,3.21498886]
[1767202887930,0.65356963,124.73,124.7,3.21498886]
[1767202889122,3.86855849,124.73,124.69,3.88539544]
[1767202889327,3.86855849,124.73,124.69,0.67040658]
[1767202889819,0.65356963,124.71,124.68,3.88539544]
[1767202890411,3.21498886,124.72,124.68,3.88539544]
[1767202890412,3.86855849,124.72,124.68,11.90590448]
[1767202890618,3.86855849,124.72,124.69,0.67040658]
[1767202891538,0.65356963,124.71,124.68,8.69091562]
[1767202891906,0.65356963,124.71,124.68,11.90590448]
[1767202894831,0.65356963,124.71,124.68,8.69091562]
[1767202895537,0.65356963,124.71,124.68,11.90590448]
[1767202897629,0.65356963,124.71,124.68,8.69091562]
[1767202898007,0.65356963,124.71,124.68,11.90590448]
[1767202898219,0.65356963,124.72,124.68,11.2354979]
[1767202898508,0.28732078,137.83,124.72,0.67040658]
[1767202898509,3.21498886,124.77,124.72,0.67040658]
[1767202898726,0.65356963,124.78,124.75,3.88539544]
[1767202902034,0.65356963,124.78,124.73,8.01705827]
[1767202902035,0.65356963,124.77,124.73,3.21498886]
[1767202902332,0.65356963,124.77,124.74,3.21498886]
[1767202904036,0.65356963,124.77,124.73,11.90269075]
[1767202906943,0.65356963,124.77,124.73,8.68770189]
[1767202907142,0.65356963,124.77,124.73,11.90269075]
[1767202908235,0.65356963,124.77,124.74,3.21498886]
[1767202908441,0.65356963,124.77,124.74,3.88539544]
[1767202909744,14.66,124.78,124.75,3.21498886]
[1767202909945,15.33393785,124.8,124.77,3.21498886]
[1767202910245,0.67393785,124.79,124.77,3.21498886]
[1767202911525,0.67393785,124.79,124.76,3.91792314]
[1767202911725,0.67393785,124.78,124.75,11.93386153]
[1767202913345,0.67393785,124.78,124.73,62.0]
[1767202913552,0.67393785,124.77,124.74,0.70293428]
[1767202915537,3.21498886,124.79,124.74,8.01657946]
[1767202915739,0.67393785,124.78,124.75,3.91792314]
[1767202915930,0.67393785,124.78,124.76,3.21498886]
[1767202916131,15.33393785,124.8,124.77,3.21498886]
[1767202916650,15.33393785,124.8,124.77,5.72249735]
[1767202917733,15.33393785,124.83,124.79,5.72249735]
[1767202917928,0.67393785,124.82,124.79,5.72249735]
[1767202918131,0.67393785,124.82,124.79,5.01956307]
[1767202919364,0.67393785,124.84,124.81,5.01956307]
[1767202919860,0.67393785,124.84,124.82,5.01956307]
[1767202920229,0.67393785,124.84,124.81,0.70293428]
[1767202920430,0.67393785,124.84,124.81,5.72249735]
[1767202921364,5.01956307,124.84,124.79,13.7353191]
[1767202921662,5.01956307,124.84,124.77,34.67593116]
[1767202921663,5.69350092,124.82,124.78,5.01956307]
[1767202921901,0.67393785,124.81,124.78,5.72249735]
[1767202922169,5.01956307,124.84,124.79,5.72249735]
[1767202922347,0.67393785,124.83,124.79,5.72249735]
[1767202922937,0.67393785,124.83,124.8,5.01956307]
[1767202923436,0.67393785,124.83,124.79,5.72249735]
[1767202924762,5.69350092,124.83,124.79,0.70293428]
[1767202925976,0.67393785,124.82,124.78,13.73634492]
[1767202926179,0.67393785,124.82,124.79,0.70293428]
[1767202926679,0.67393785,124.82,124.78,13.73634492]
[1767202926857,0.67393785,124.82,124.78,13.03341064]
[1767202927064,0.67393785,124.82,124.79,0.70293428]
[1767202927481,0.67393785,124.82,124.79,5.72249735]
[1767202928272,0.67393785,124.82,124.79,0.70293428]
[1767202929558,0.67393785,124.82,124.78,5.72249735]
[1767202929761,5.01956307,124.81,124.77,62.0]
[1767202929974,22.65055454,124.84,124.76,13.73758718]
[1767202929975,5.69350092,124.8,124.76,13.73758718]
[1767202930283,0.67393785,124.8,124.76,13.73758718]
[1767202930849,5.01956307,124.79,124.75,13.7382942]
[1767202931050,0.67393785,124.77,124.74,13.03589497]
[1767202931282,5.01956307,124.78,124.75,0.70293428]
[1767202931488,5.69350092,124.79,124.75,0.70293428]
[1767202932860,5.69350092,124.79,124.76,5.72249735]
[1767202932861,0.67393785,124.79,124.76,5.72249735]
[1767202933266,0.67393785,124.79,124.76,0.70293428]
[1767202935053,0.67393785,124.78,124.75,5.01956307]
[1767202935472,0.67393785,124.78,124.74,13.73886464]
[1767202936553,0.67393785,124.77,124.73,8.01697132]
[1767202936755,0.67393785,124.77,124.73,13.73946867]
[1767202938351,5.01956307,124.77,124.73,8.7199056]
[1767202938572,0.67393785,124.76,124.73,8.7199056]
[1767202938764,5.01956307,124.77,124.73,13.03653439]
[1767202938973,5.01956307,124.77,124.74,0.70293428]
[1767202939354,5.71832234,124.77,124.74,0.70293428]
[1767202940372,5.71909081,124.77,124.73,13.72092429]
[1767202941154,0.69952774,124.77,124.74,13.7203683]
[1767202941485,0.69952774,124.77,124.74,8.70080523]
[1767202943182,0.69952774,124.81,124.75,0.6843899]
[1767202943370,0.69952774,124.79,124.75,5.70395297]
[1767202943882,5.71909081,124.79,124.75,0.6843899]
[1767202944410,5.71909081,124.79,124.75,5.70395297]
[1767202944555,5.71909081,124.78,124.74,8.01641533]
[1767202944755,5.01956307,124.77,124.73,75.03640133]
[1767202945074,5.71909081,124.77,124.74,0.6843899]
[1767202945977,5.71909081,124.77,124.74,8.70105275]
[1767202946282,0.69952774,124.77,124.74,8.70105275]
[1767202947064,0.69952774,124.77,124.73,67.01956307]
[1767202947065,0.69952774,124.77,124.73,75.03655378]
[1767202947260,0.69952774,124.77,124.73,75.72094368]
[1767202947579,0.69952774,124.77,124.73,13.72094368]
[1767202947786,0.69952774,124.77,124.74,0.6843899]
[1767202949594,0.69952774,124.77,124.74,8.70097012]
[1767202950901,0.69952774,124.79,124.75,5.01956307]
[1767202951103,0.69952774,124.79,124.75,5.70395297]
[1767202951783,0.69952774,124.79,124.76,5.70395297]
[1767202953287,0.69952774,124.79,124.76,0.6843899]
[1767202956362,14.64,124.8,124.76,5.70395297]
[1767202956563,19.65956307,124.8,124.77,0.6843899]
[1767202956866,20.35909081,124.8,124.77,0.6843899]
[1767202957068,20.35909081,124.8,124.76,13.71931613]
[1767202957269,0.69952774,124.79,124.76,13.71931613]
[1767202957894,0.69952774,124.83,124.77,0.6843899]
[1767202958099,0.69952774,124.83,124.77,5.70395297]
[1767202958100,0.69952774,124.82,124.77,5.70395297]
[1767202958309,0.69952774,124.84,124.78,5.70395297]
[1767202958606,0.69952774,124.84,124.79,5.70395297]
[1767202958607,5.71909081,124.83,124.79,5.70395297]
[1767202958969,0.69952774,124.82,124.79,5.70395297]
[1767202959609,0.69952774,124.82,124.79,5.01956307]
[1767202960178,14.64,124.84,124.8,5.70395297]
[1767202960179,15.33952774,124.84,124.8,5.70395297]
[1767202960386,15.33952774,124.84,124.81,5.01956307]
[1767202960880,0.69952774,124.83,124.81,5.01956307]
[1767202961471,5.21956307,124.85,124.81,5.01956307]
[1767202961472,0.2,124.85,124.82,5.70395297]
[1767202961669,0.2,124.9,124.82,5.70395297]
[1767202961670,0.2,124.9,124.85,0.6843899]
[1767202961870,0.2,124.96,124.89,10.03912614]
[1767202962172,0.2,125.04,124.99,8.00064005]
[1767202962388,15.0,125.11,125.03,5.01956307]
[1767202962389,0.69952774,125.11,125.03,5.01956307]
[1767202962598,0.69952774,125.06,125.03,5.01956307]
[1767202962773,0.69952774,125.04,125.01,5.01956307]
[1767202963175,0.69952774,125.04,125.02,5.01956307]
[1767202964600,0.69952774,125.04,125.02,12.38204128]
[1767202964891,0.69952774,125.04,124.98,0.6843899]
[1767202965096,14.64,125.05,124.98,12.38204128]
[1767202965097,13.08156902,125.02,124.98,12.38204128]
[1767202965300,0.69952774,125.01,124.98,12.38204128]
[1767202965605,27.02204128,125.02,124.98,12.38204128]
[1767202965800,27.02204128,125.01,124.96,12.38204128]
[1767202965994,12.38204128,125.0,124.96,12.38204128]
[1767202966188,12.38204128,124.98,124.94,12.38204128]
[1767202966392,14.64,124.97,124.94,12.38204128]
[1767202967106,14.64,124.97,124.93,4.86336567]
[1767202967107,14.64,124.97,124.95,12.38204128]
[1767202967280,12.38204128,125.01,124.96,12.38204128]
[1767202967486,15.33952774,125.0,124.95,0.6843899]
[1767202967680,12.38204128,124.99,124.95,12.38204128]
[1767202967887,0.69952774,124.98,124.95,12.38204128]
[1767202968109,0.69952774,124.98,124.94,12.38204128]
[1767202968311,13.08156902,124.98,124.94,12.38204128]
[1767202970387,13.08156902,124.98,124.93,21.07084213]
[1767202970905,27.71715364,124.97,124.93,0.6843899]
[1767202971688,27.71715364,124.97,124.93,13.06643118]
[1767202972004,15.33511236,124.97,124.93,13.06643118]
[1767202972306,27.02204128,124.99,124.95,13.07733481]
[1767202973886,12.38204128,124.98,124.93,12.38204128]
[1767202974093,14.64,124.99,124.92,13.07733481]
[1767202974094,12.91270885,124.97,124.92,13.07733481]
[1767202974905,12.91270885,124.97,124.92,0.69529353]
[1767202975102,0.53066757,124.96,124.91,14.64]
[1767202975417,0.53066757,124.96,124.9,13.07733481]
[1767202975418,12.91270885,124.95,124.9,13.07733481]
[1767202976613,12.91270885,124.95,124.9,21.08358785]
[1767202977106,0.53066757,124.95,124.91,12.38204128]
[1767202978005,14.64,124.96,124.9,8.70154657]
[1767202978221,12.38204128,124.95,124.91,13.07733481]
[1767202978395,27.02204128,124.96,124.91,13.07733481]
[1767202978719,22.27158065,124.96,124.91,8.32687418]
[1767202979421,14.64,124.96,124.91,8.32687418]
[1767202980419,14.64,124.96,124.92,7.63158065]
[1767202981015,14.62,124.97,124.93,8.32687418]
[1767202981613,22.25158065,124.97,124.93,8.32687418]
[1767202982696,7.63158065,124.97,124.93,8.32687418]
[1767202983418,7.63158065,124.97,124.93,0.69529353]
[1767202983601,7.63158065,124.96,124.91,8.32687418]
[1767202983801,7.63158065,124.96,124.91,0.69529353]
[1767202984113,7.63158065,124.96,124.91,8.32687418]
[1767202984295,7.63158065,124.96,124.92,8.32687418]
[1767202984621,7.63158065,124.97,124.92,8.32687418]
[1767202986317,7.63158065,124.97,124.93,7.63158065]
[1767202986522,17.82419531,124.98,124.93,3.20419531]
[1767202987219,17.82419531,124.98,124.92,0.69529353]
[1767202987399,17.82419531,124.98,124.93,3.20419531]
[1767202987599,17.82419531,124.98,124.92,0.69529353]
[1767202987600,17.82419531,124.98,124.94,3.20419531]
[1767202988093,17.82419531,124.98,124.93,3.20419531]
[1767202988291,14.62,124.98,124.93,3.20419531]
[1767202988497,17.82419531,124.98,124.94,3.20419531]
[1767202988698,69.04959757,125.0,124.97,3.20419531]
[1767202988915,17.82419531,125.01,124.97,3.20419531]
[1767202990518,22.24544609,125.01,124.97,7.62544609]
[1767202994431,22.24544609,125.01,124.98,7.62544609]
[1767202994432,14.62,125.01,124.98,7.62544609]
[1767202995626,14.62,125.01,124.97,8.32073962]
[1767202995822,14.62,125.01,124.97,7.62544609]
[1767202996120,22.24544609,125.01,124.96,7.62544609]
[1767202996626,7.62544609,124.99,124.95,7.62544609]
[1767202997127,7.62544609,124.98,124.94,7.62544609]
[1767202997504,22.24544609,124.98,124.94,7.62544609]
[1767203002709,7.62544609,124.97,124.93,7.62544609]
[1767203002906,7.62544609,124.97,124.92,7.62544609]
[1767203003111,14.62,124.96,124.92,7.62544609]
[1767203003345,22.24544609,124.96,124.92,7.62544609]
[1767203005146,14.62,124.96,124.92,7.62544609]
[1767203005354,5.9696582,124.95,124.92,7.62544609]
[1767203005641,14.62,124.96,124.92,7.62544609]
[1767203005959,5.96974681,124.95,124.92,7.62544609]
[1767203006138,14.62,124.96,124.92,7.62544609]
[1767203006318,5.98143487,124.95,124.92,7.62544609]
[1767203006518,14.62,124.96,124.92,7.62544609]
[1767203006723,5.9810116,124.95,124.92,7.62544609]
[1767203006928,14.62,124.96,124.92,7.62544609]
[1767203007233,5.98024139,124.95,124.92,7.62544609]
[1767203007531,14.62,124.96,124.92,7.62544609]
[1767203007838,5.98001357,124.95,124.92,7.62544609]
[1767203008038,14.62,124.96,124.92,7.62544609]
[1767203008333,5.98319682,124.95,124.92,7.62544609]
[1767203008531,14.62,124.96,124.92,7.62544609]
[1767203008731,5.98321535,124.95,124.92,7.62544609]
[1767203008921,14.62,124.96,124.92,7.62544609]
[1767203009235,5.98771865,124.95,124.93,7.62544609]
[1767203009443,14.62,124.96,124.93,7.62544609]
[1767203009741,5.98745513,124.95,124.92,7.62544609]
[1767203009951,14.62,124.96,124.92,7.62544609]
[1767203010141,5.98745314,124.95,124.92,7.62544609]
[1767203010320,14.62,124.96,124.92,7.62544609]
[1767203010653,14.62,124.96,124.92,3.20483512]
[1767203010654,5.9896549,124.95,124.92,3.20483512]
[1767203010831,14.62,124.96,124.92,3.20483512]
[1767203011154,5.9905128,124.95,124.92,3.8855444]
[1767203011333,14.62,124.96,124.92,3.8855444]
[1767203011533,5.99030544,124.95,124.92,3.8855444]
[1767203011726,14.62,124.96,124.92,3.8855444]
[1767203011927,5.99030463,124.95,124.92,3.8855444]
[1767203012128,14.62,124.96,124.92,3.8855444]
[1767203012339,5.99037297,124.95,124.92,0.68070928]
[1767203012642,14.62,124.96,124.92,0.68070928]
[1767203012845,5.98992039,124.95,124.92,0.68070928]
[1767203013038,14.62,124.96,124.92,0.68070928]
[1767203013237,5.99012617,124.95,124.92,0.68070928]
[1767203013440,14.62,124.96,124.92,0.68070928]
[1767203013639,5.98999519,124.95,124.92,0.68070928]
[1767203013840,14.62,124.96,124.92,0.68070928]
[1767203014051,5.98999519,124.95,124.92,0.68070928]
[1767203014218,14.62,124.96,124.92,0.68070928]
[1767203014946,17.82483512,124.96,124.91,0.68070928]
[1767203015136,3.20483512,124.94,124.9,0.68070928]
[1767203015443,14.62,124.94,124.9,3.8855444]
[1767203017157,14.62,124.94,124.91,3.20483512]
[1767203018048,14.62,124.94,124.9,3.8855444]
[1767203018254,14.62,124.94,124.91,0.68070928]
[1767203018436,14.62,124.94,124.92,3.8855444]
[1767203018625,17.82483512,124.97,124.93,3.8855444]
[1767203018825,5.98911795,124.96,124.93,0.68070928]
[1767203019058,14.62,124.97,124.93,3.8855444]
[1767203019224,17.82483512,124.97,124.93,3.8855444]
[1767203020549,14.62,124.97,124.93,3.8855444]
[1767203020852,17.82483512,124.97,124.93,3.8855444]
[1767203021541,3.20483512,124.97,124.93,3.8855444]
[1767203021746,14.62,124.97,124.94,0.68070928]